bitfinex/quotes_ETHUSD_20260109
["timestamp","ask_amount","ask_price","bid_price","bid_amount"]
[1767993931311,0.002,3083.6,3083.0,1.39975176]
[1767993931516,0.002,3083.6,3083.1,0.97653875]
[1767993935315,0.002,3083.6,3083.1,4.2199859]
[1767993936947,0.9591667,3083.9,3083.1,3.24344715]
[1767993936948,0.94186747,3083.9,3083.1,3.24344715]
[1767993937251,0.94186747,3083.9,3083.1,4.22289657]
[1767993937554,0.94186747,3083.9,3083.2,0.46461096]
[1767993938259,0.93906267,3083.8,3083.2,0.46461096]
[1767993938460,0.93906267,3083.8,3083.0,0.98044942]
[1767993938642,0.93906267,3083.8,3083.0,4.22399455]
[1767993938823,0.93906267,3083.8,3083.1,0.97944942]
[1767993939348,3.24546833,3083.9,3083.1,0.97944942]
[1767993939349,0.0028048,3083.9,3083.2,0.97944942]
[1767993941150,0.0028048,3083.9,3083.5,0.001]
[1767993941359,0.002,3083.6,3083.5,0.001]
[1767993941653,0.0214301,3084.0,3083.5,0.98044942]
[1767993941959,3.26399566,3084.0,3083.5,0.00180488]
[1767993946850,4.20305833,3084.0,3083.5,0.00180488]
[1767993950363,0.98945856,3083.9,3083.5,0.00180488]
[1767993952337,3.26399566,3084.0,3083.5,0.00180488]
[1767993952338,0.0214301,3084.0,3083.5,0.00180488]
[1767993952539,3.26398052,3084.0,3083.5,0.00180488]
[1767993952741,0.0214301,3084.0,3083.5,0.00180488]
[1767993953341,3.26398404,3084.0,3083.5,0.00180488]
[1767993953752,0.002,3083.7,3083.5,0.00180488]
[1767993955376,0.002,3083.7,3083.5,0.42135899]
[1767993956569,0.002,3083.7,3083.5,0.00180488]
[1767993957044,0.002,3083.7,3083.5,0.952271]
[1767993959274,0.0234301,3084.0,3083.5,0.952271]
[1767993960879,3.2659804,3084.0,3083.5,0.952271]
[1767993961254,4.25543896,3084.0,3083.5,0.00180488]
[1767993961580,0.98945856,3083.9,3083.5,0.00180488]
[1767993961878,4.23218032,3083.9,3083.5,0.00180488]
[1767993964984,0.98945856,3083.9,3083.5,0.00180488]
[1767993965871,0.0234301,3084.0,3083.8,0.001]
[1767993967674,0.002,3084.2,3083.8,0.001]
[1767993967971,3.24207584,3084.5,3083.8,0.92016802]
[1767993968375,3.24207584,3084.5,3083.8,1.33647989]
[1767993969987,4.23187287,3084.5,3083.8,1.33647989]
[1767993974756,4.23187287,3084.5,3083.8,0.92016802]
[1767993975392,4.23187287,3084.5,3083.8,0.92016802]
[1767993976786,3.24207584,3084.5,3083.8,0.92016802]
[1767993976986,3.4989271,3084.6,3083.8,0.92016802]
[1767993977288,6.7408542,3084.6,3083.8,0.92016802]
[1767993977471,7.73065123,3084.6,3084.1,0.001]
[1767993977795,0.002,3084.2,3084.1,0.001]
[1767993987020,0.002,3084.5,3084.1,0.001]
[1767993987210,0.002,3084.5,3084.2,0.6602566]
[1767993994727,0.002,3084.5,3084.1,0.001]
[1767993996521,0.98063799,3084.5,3084.1,0.001]
[1767993998423,0.002,3084.5,3084.1,0.001]
[1767993998787,0.002,3084.6,3084.1,0.001]
[1767993998997,0.002,3084.6,3084.1,0.98438048]
[1767993999193,0.002,3084.6,3084.2,0.1967761]
[1767994001799,0.002,3084.5,3084.2,0.1967761]
[1767994005625,0.00080696,3084.8,3084.4,0.98338048]
[1767994009427,0.257,3085.2,3084.5,0.94843316]
[1767994009639,0.93493478,3085.2,3084.5,0.94843316]
[1767994009795,0.93493478,3085.2,3084.6,0.41913269]
[1767994010912,0.002,3085.2,3084.6,1.36756585]
[1767994011504,0.002,3085.2,3084.6,0.94843316]
[1767994011837,0.002,3085.2,3084.7,0.94843316]
[1767994012630,0.002,3085.3,3084.9,5.68239796]
[1767994012828,0.002,3085.3,3084.8,0.94843316]
[1767994014306,0.002,3084.9,3084.8,0.94843316]
[1767994014507,0.002,3085.2,3084.8,0.98726942]
[1767994016838,0.93293478,3085.1,3084.8,0.98726942]
[1767994017138,0.93293478,3085.1,3084.4,3.24287644]
[1767994019638,0.93293478,3085.1,3084.4,4.1913096]
[1767994019841,0.002,3085.2,3084.4,4.1913096]
[1767994019842,0.93493478,3085.2,3084.5,0.94843316]
[1767994020206,4.17622736,3085.2,3084.5,0.94843316]
[1767994021038,0.93493478,3085.2,3084.5,0.94843316]
[1767994021231,0.93493478,3085.2,3084.6,0.41913327]
[1767994022437,4.1762475,3085.2,3084.6,0.41913327]
[1767994022638,4.1762475,3085.2,3084.4,0.00080704]
[1767994023209,4.1762475,3085.2,3084.4,0.90180568]
[1767994024512,4.1762475,3085.2,3084.4,4.14387588]
[1767994024713,4.1762475,3085.2,3084.5,0.90099864]
[1767994026134,0.93493478,3085.2,3084.5,0.90099864]
[1767994026338,0.93493478,3085.2,3084.6,0.41439176]
[1767994026923,0.93493478,3085.2,3084.7,0.001]
[1767994027616,0.002,3085.2,3084.7,0.001]
[1767994029841,0.002,3085.2,3084.7,0.90199864]
[1767994030348,0.002,3085.2,3084.7,0.001]
[1767994031017,1.00011189,3085.2,3084.7,0.001]
[1767994033546,0.002,3085.2,3084.7,0.001]
[1767994033855,0.002,3085.2,3084.8,0.90099864]
[1767994034221,0.002,3085.2,3084.7,0.41540017]
[1767994035338,0.002,3085.2,3084.7,0.001]
[1767994036362,1.00011189,3085.2,3084.7,0.001]
[1767994038924,0.002,3084.9,3084.7,0.001]
[1767994052874,0.004,3085.7,3085.3,0.97110067]
[1767994053082,0.97091023,3086.6,3085.7,0.97110067]
[1767994053255,0.97091023,3086.5,3085.5,0.97110067]
[1767994053444,0.97091023,3086.5,3085.6,1.70715076]
[1767994053646,0.97091023,3086.1,3085.6,0.00080624]
[1767994053845,0.97091023,3086.3,3085.6,0.00080624]
[1767994054080,0.97091023,3086.2,3085.6,0.00080624]
[1767994054451,0.03255314,3086.5,3085.6,0.97190691]
[1767994054452,0.97091023,3086.5,3085.6,0.97190691]
[1767994054647,1.00346337,3086.5,3085.6,0.00080624]
[1767994055058,0.97091023,3086.3,3085.6,0.00080624]
[1767994055375,0.97091023,3086.3,3085.6,0.44759736]
[1767994055984,0.96891024,3086.3,3085.6,0.00080624]
[1767994056282,0.96891024,3086.3,3085.6,0.25580624]
[1767994057157,0.97091023,3086.2,3085.6,0.25580624]
[1767994058371,0.97091023,3086.2,3085.1,0.97110067]
[1767994058569,0.97091023,3086.2,3084.4,0.00080704]
[1767994058570,0.94898401,3085.7,3084.4,0.97190771]
[1767994058770,0.94498401,3085.7,3084.4,1.22690771]
[1767994058988,0.94498401,3085.7,3084.7,0.97210067]
[1767994059185,7.42691561,3085.5,3084.7,0.97210067]
[1767994059383,1.69093089,3085.4,3084.7,0.001]
[1767994059689,0.94498401,3085.3,3084.7,0.001]
[1767994060071,0.74594688,3085.4,3084.7,0.001]
[1767994060275,0.97110067,3085.2,3084.7,0.001]
[1767994061479,4.21241847,3085.2,3084.7,0.001]
[1767994061679,1.46072426,3085.1,3084.4,0.97190771]
[1767994061859,1.46072426,3085.1,3084.4,0.00080704]
[1767994062193,1.00346337,3085.0,3084.1,0.001]
[1767994062483,0.97091023,3084.7,3084.1,0.001]
[1767994063686,3.24191143,3084.6,3084.1,0.001]
[1767994063893,1.3921924,3084.5,3084.1,0.001]
[1767994064390,0.97091023,3084.4,3083.5,0.00180488]
[1767994067104,0.97171511,3083.9,3083.0,0.97210067]
[1767994067307,1.63609957,3083.8,3083.0,0.97210067]
[1767994067608,0.25580488,3083.9,3083.0,0.97210067]
[1767994067902,0.97314603,3083.7,3083.0,0.97210067]
[1767994069103,4.14557682,3083.6,3083.0,0.001]
[1767994069268,4.14357683,3083.6,3083.0,0.001]
[1767994069473,0.83596071,3083.5,3083.0,0.001]
[1767994069675,0.255,3084.0,3083.0,0.001]
[1767994069676,0.90261405,3087.8,3085.0,0.93521209]
[1767994069878,4.29875172,3088.5,3087.7,11.35952072]
[1767994070074,0.93516719,3090.5,3090.1,20.19297057]
[1767994070373,0.03255314,3090.1,3089.6,0.25580504]
[1767994070572,0.93516719,3090.3,3090.2,20.11049386]
[1767994070805,0.03255314,3089.8,3089.6,0.25580504]
[1767994071103,0.03255314,3090.0,3089.7,0.255]
[1767994071304,0.03255314,3089.7,3089.6,0.12946387]
[1767994071506,0.03255314,3089.5,3088.9,0.255]
[1767994071705,0.03255314,3089.1,3089.0,0.68900055]
[1767994072005,0.03255314,3089.2,3089.0,1.80177756]
[1767994072304,0.03255314,3088.9,3088.7,0.68798541]
[1767994072507,0.03255314,3088.9,3088.3,1.72800828]
[1767994072508,0.03255314,3088.6,3088.3,2.08721761]
[1767994072706,0.03255314,3088.9,3088.3,2.08721761]
[1767994072707,0.03255314,3088.7,3088.3,1.15200552]
[1767994073200,0.03255314,3088.7,3088.2,0.255]
[1767994073394,0.03255314,3088.7,3087.9,1.15200552]
[1767994073572,0.03561599,3088.5,3087.9,1.15200552]
[1767994073901,0.03561599,3088.5,3087.9,3.23844528]
[1767994074204,0.03255314,3088.7,3087.9,4.17365737]
[1767994074399,0.03561599,3088.5,3087.9,4.42865737]
[1767994074603,0.002,3088.6,3087.9,4.42865737]
[1767994074807,0.002,3088.6,3088.0,1.15200552]
[1767994074808,0.03561599,3088.4,3088.0,1.15200552]
[1767994074999,0.03561599,3088.2,3087.9,1.15200552]
[1767994075303,0.03561599,3087.9,3087.5,0.00080488]
[1767994075507,0.03561599,3087.7,3087.5,0.00080488]
[1767994076689,0.03561599,3087.7,3087.2,0.00083659]
[1767994077004,0.03561599,3087.7,3086.5,1.72881412]
[1767994077005,0.03561599,3087.3,3086.5,3.24068375]
[1767994077316,0.04210595,3086.9,3086.5,3.24068375]
[1767994077480,0.04210595,3086.9,3086.5,0.00080584]
[1767994078789,0.04210595,3087.1,3086.5,0.00080584]
[1767994078996,0.04210595,3087.3,3086.5,0.00080584]
[1767994079713,0.04210595,3087.2,3086.5,0.00080584]
[1767994080174,0.255,3087.1,3086.5,0.00080584]
[1767994081787,3.49429258,3087.1,3086.5,0.00080584]
[1767994082108,0.255,3087.1,3086.5,0.00080584]
[1767994082310,0.04210595,3087.0,3086.5,0.00080584]
[1767994082696,0.35364134,3086.9,3086.5,0.00080584]
[1767994082875,0.04210595,3086.8,3086.5,0.00080584]
[1767994083983,0.04210595,3086.6,3086.5,0.00080584]
[1767994084606,0.04210595,3086.6,3085.9,0.001]
[1767994084814,0.255,3086.5,3086.0,0.68547091]
[1767994085020,0.04210595,3086.4,3086.1,0.68547091]
[1767994085195,0.255,3086.5,3086.2,0.68547091]
[1767994085508,0.255,3086.5,3086.3,0.68547091]
[1767994085713,0.35444718,3086.9,3086.0,0.9637117]
[1767994085923,0.00080488,3087.9,3087.6,0.9637117]
[1767994086208,0.002,3088.9,3086.3,6.48020332]
[1767994086209,3.23975406,3088.6,3087.7,0.68408616]
[1767994086406,0.32397541,3088.5,3087.8,0.68408616]
[1767994086607,0.257,3088.6,3087.5,0.96451666]
[1767994086810,0.257,3088.6,3087.7,0.9637117]
[1767994087010,0.257,3088.6,3087.9,0.9637117]
[1767994087214,0.257,3088.6,3087.8,0.68397378]
[1767994087215,0.257,3088.6,3088.1,0.9637117]
[1767994087413,0.257,3088.6,3088.2,0.68397378]
[1767994087610,0.257,3088.6,3088.1,0.9637117]
[1767994087817,0.257,3088.6,3088.2,0.68338848]
[1767994088021,0.257,3088.6,3088.1,0.9637117]
[1767994088314,0.257,3088.6,3088.2,0.68323535]
[1767994088619,0.255,3088.7,3087.7,0.9637117]
[1767994088916,0.255,3088.7,3087.5,0.00080496]
[1767994088917,0.92819199,3088.7,3087.5,0.00080496]
[1767994089096,0.92819199,3088.7,3087.6,0.68352221]
[1767994089291,0.92819199,3088.7,3087.7,0.68352221]
[1767994089496,9.71313861,3088.6,3087.5,0.00080496]
[1767994089697,6.47542574,3088.6,3087.6,0.68352957]
[1767994089897,6.47542574,3088.6,3087.5,0.00080496]
[1767994089898,0.74036177,3088.5,3087.5,0.00080496]
[1767994090107,0.74036177,3088.5,3087.6,0.6835702]
[1767994090316,0.74036177,3088.5,3087.5,0.00080496]
[1767994090494,0.74036177,3088.5,3087.6,0.68360767]
[1767994090687,0.72157875,3088.4,3087.5,0.00080496]
[1767994090888,0.72157875,3088.4,3087.6,0.68361323]
[1767994091123,0.72157875,3088.4,3087.5,0.00080496]
[1767994091289,0.72157875,3088.4,3087.6,0.68349488]
[1767994091618,6.47605478,3088.3,3087.5,0.00080496]
[1767994091914,0.71976335,3088.2,3087.5,0.00080496]
[1767994092083,0.255,3088.1,3087.5,0.00080496]
[1767994093516,6.47668392,3088.0,3087.5,0.00080496]
[1767994093819,6.51878987,3088.0,3087.5,0.00080496]
[1767994094114,0.04210595,3087.8,3087.2,0.00083742]
[1767994094314,1.02211022,3087.8,3087.2,0.00083742]
[1767994094497,0.04210595,3087.6,3087.2,0.00083742]
[1767994094683,0.255,3087.5,3087.2,0.00083742]
[1767994095528,0.002,3088.9,3087.8,0.04210595]
[1767994095689,0.00080504,3090.0,3089.0,0.96451618]
[1767994095885,0.00080504,3090.0,3089.1,1.64943926]
[1767994096125,0.00080504,3090.0,3089.2,0.68572756]
[1767994096325,0.00080504,3090.0,3089.1,0.9637117]
[1767994096326,0.00080504,3090.0,3089.3,0.68572756]
[1767994096491,0.32369481,3089.9,3089.4,0.68572756]
[1767994096685,0.32369481,3089.9,3089.1,0.9637117]
[1767994096686,0.32369481,3089.9,3089.5,0.68572756]
[1767994096891,0.32369481,3089.9,3089.6,0.68572756]
[1767994097141,0.32369481,3089.9,3089.7,0.68572756]
[1767994097306,3.23710273,3090.0,3089.1,2.69171998]
[1767994097307,0.35607975,3089.8,3089.1,2.69171998]
[1767994097619,0.35607975,3089.8,3089.2,0.93466359]
[1767994097920,0.35607975,3089.8,3089.3,0.93466359]
[1767994098121,0.35607975,3089.8,3089.4,0.68515984]
[1767994098318,0.35607975,3089.8,3089.5,0.93501906]
[1767994098499,0.35924479,3089.7,3089.6,0.68515984]
[1767994099322,3.23636308,3089.9,3089.6,0.93563716]
[1767994099500,0.002,3089.9,3089.7,0.93563716]
[1767994099700,0.002,3089.9,3089.8,0.68515984]
[1767994099903,0.32590817,3089.9,3089.8,0.68765883]
[1767994100211,0.32590817,3089.9,3089.2,1.72800828]
[1767994100387,0.32590817,3089.9,3089.3,0.25042633]
[1767994100596,0.32590817,3089.9,3089.4,0.25042633]
[1767994100810,0.32590817,3089.9,3089.5,0.25042633]
[1767994101011,0.35629899,3089.8,3089.6,0.25042633]
[1767994101206,0.35629899,3089.8,3089.7,0.25024047]
[1767994101400,0.35629899,3089.8,3089.2,0.9637117]
[1767994101600,0.61129899,3089.8,3089.3,0.25017747]
[1767994101798,0.61129899,3089.8,3089.1,1.72800828]
[1767994102005,0.61129899,3089.8,3089.0,0.00080448]
[1767994102006,9.70968054,3089.7,3089.0,0.00080448]
[1767994102201,1.03209795,3089.6,3089.0,0.00080448]
[1767994103622,3.2367697,3089.5,3089.0,0.00080448]
[1767994104531,0.04210595,3089.2,3089.0,0.00080448]
[1767994104698,0.254,3089.1,3089.0,0.00080448]
[1767994105094,0.254,3089.1,3088.7,0.00080624]
[1767994105326,0.254,3089.1,3088.1,0.9637117]
[1767994105327,0.04210595,3089.0,3088.1,0.9637117]
[1767994105829,3.23760805,3088.7,3088.1,0.9637117]
[1767994105993,0.65172306,3088.6,3087.8,1.14571607]
[1767994106195,0.65172306,3088.6,3087.7,2.10942777]
[1767994106397,0.65172306,3088.6,3087.8,4.3842524]
[1767994106604,6.4752161,3088.7,3087.9,0.9637117]
[1767994106824,3.23760805,3088.7,3087.9,0.9637117]
[1767994108117,0.04210595,3089.0,3087.9,0.9637117]
[1767994108321,3.23739842,3088.9,3087.9,0.9637117]
[1767994108519,3.23739842,3088.9,3088.0,0.9637117]
[1767994108700,0.57773984,3088.8,3088.0,0.9637117]
[1767994110514,3.23760805,3088.7,3088.0,0.9637117]
[1767994110722,3.81525513,3088.8,3088.0,0.9637117]
[1767994110922,0.00080448,3089.4,3089.1,0.9637117]
[1767994111230,0.002,3089.3,3089.1,0.9637117]
[1767994111444,0.002,3089.6,3089.4,0.9637117]
[1767994112138,0.002,3089.6,3089.5,0.68763248]
[1767994114904,0.002,3089.6,3089.1,1.14571607]
[1767994115234,0.002,3089.6,3089.2,0.24966266]
[1767994115417,0.002,3089.6,3089.1,1.14571607]
[1767994115617,0.002,3089.6,3089.0,0.95161096]
[1767994120573,0.00280504,3090.6,3089.6,0.95161152]
[1767994121350,0.00280504,3090.6,3089.6,0.00080512]
[1767994121351,0.04210595,3090.5,3089.6,0.00080512]
[1767994122307,0.00280504,3090.6,3089.6,0.00080512]
[1767994122814,6.47404038,3090.6,3089.6,0.95161152]
[1767994123047,0.65169804,3090.5,3089.6,0.95161152]
[1767994123457,0.002,3090.2,3089.6,0.95161152]
[1767994124414,0.002,3090.2,3089.7,0.9508064]
[1767994124709,0.00280504,3090.1,3089.7,0.9508064]
[1767994125450,0.00280504,3090.1,3089.8,0.9508064]
[1767994125652,0.002,3090.2,3089.6,0.00080512]
[1767994125653,0.002,3090.2,3090.0,0.9508064]
[1767994126517,0.0008341,3090.7,3090.5,0.9508064]
[1767994127837,0.04210595,3090.6,3090.1,1.14571607]
[1767994128039,0.04210595,3090.6,3090.0,1.14571607]
[1767994128233,0.0008341,3090.7,3090.1,0.9508064]
[1767994128444,0.0008341,3090.7,3090.2,0.9508064]
[1767994129234,0.32362424,3090.6,3090.2,0.9508064]
[1767994131151,0.32240344,3090.6,3090.2,0.9508064]
[1767994131653,3.55803768,3090.6,3090.2,0.9508064]
[1767994132357,0.32240344,3090.6,3090.2,0.9508064]
[1767994132851,3.55802284,3090.6,3090.2,0.9508064]
[1767994133056,0.35588569,3090.5,3090.2,0.9508064]
[1767994133734,3.59163851,3090.5,3090.1,0.86285644]
[1767994134150,6.82739133,3090.5,3090.1,0.86285644]
[1767994134351,3.59163851,3090.5,3090.1,0.86285644]
[1767994134523,3.59163851,3090.5,3090.0,0.86285644]
[1767994134719,0.71496731,3090.4,3090.0,0.86285644]
[1767994135655,3.48975282,3090.5,3090.0,0.86285644]
[1767994135960,0.04210595,3089.9,3089.4,0.92208939]
[1767994136123,0.25480512,3090.0,3089.4,0.92208939]
[1767994136630,0.25480512,3090.0,3089.3,0.001]
[1767994137419,6.47270138,3089.9,3089.3,0.001]
[1767994137643,0.67275065,3089.8,3089.3,0.001]
[1767994138636,0.7148566,3089.8,3089.3,0.001]
[1767994138830,0.67275065,3089.8,3089.3,0.001]
[1767994139249,0.67275065,3089.8,3089.3,0.92308939]
[1767994139442,3.23656018,3089.7,3089.3,0.92308939]
[1767994139755,0.39093108,3089.6,3089.3,0.92308939]
[1767994142549,3.62764842,3089.6,3089.3,0.92308939]
[1767994142871,0.0008341,3090.7,3089.9,0.91038611]
[1767994143170,0.256,3090.9,3090.7,0.91038611]
[1767994144642,0.256,3090.9,3090.4,0.91038611]
[1767994146652,3.49138386,3090.9,3090.3,0.00083493]
[1767994147303,6.72676772,3090.9,3090.3,0.00083493]
[1767994147741,6.72676772,3090.9,3090.5,0.001]
[1767994147941,6.72676772,3090.9,3090.1,0.91038611]
[1767994147942,0.002,3090.6,3090.1,0.91038611]
[1767994149155,0.002,3090.6,3089.7,0.91038611]
[1767994152681,0.002,3090.6,3089.6,0.0008052]
[1767994153049,0.002,3090.6,3088.7,0.00080632]
[1767994153050,0.00080456,3089.4,3088.7,0.00080632]
[1767994153249,0.254,3089.3,3088.8,0.91038611]
[1767994155987,0.254,3089.3,3088.7,0.00080632]
[1767994155988,3.49102638,3089.3,3088.7,0.00080632]
[1767994156186,6.72805276,3089.3,3088.7,0.91119243]
[1767994156388,0.67288573,3089.2,3088.7,0.00080632]
[1767994157657,3.23718882,3089.1,3088.7,0.00080632]
[1767994159384,0.97020788,3089.0,3088.2,0.001]
[1767994159990,9.71219526,3088.9,3088.2,0.001]
[1767994160183,0.254,3088.8,3088.2,0.001]
[1767994160491,0.99661953,3088.7,3088.2,0.001]
[1767994162270,6.47542574,3088.6,3088.2,0.001]
[1767994162665,9.71313861,3088.6,3088.2,0.001]
[1767994162865,7.40352767,3088.6,3088.2,0.001]
[1767994163061,0.92810193,3088.5,3088.2,0.001]
[1767994163260,0.74035277,3088.4,3088.2,0.001]
[1767994163493,0.254,3088.3,3088.2,0.001]
[1767994164259,3.49202739,3088.3,3088.2,0.001]
[1767994164860,6.73005478,3088.3,3087.5,0.00180504]
[1767994166802,3.49202739,3088.3,3087.5,0.00180504]
[1767994167466,3.91526541,3088.3,3087.5,0.00180504]
[1767994170403,7.1532928,3088.3,3087.5,0.00180504]
[1767994171016,0.254,3088.2,3087.5,0.00180504]
[1767994171488,3.49220329,3088.2,3087.8,0.001]
[1767994172709,7.65850851,3088.2,3087.8,0.001]
[1767994172906,1.73627658,3088.1,3087.5,0.00180504]
[1767994173107,0.95910614,3088.0,3087.5,0.00180504]
[1767994174090,6.47689368,3087.9,3087.5,0.00180504]
[1767994174688,7.43599982,3087.9,3087.5,0.00180504]
[1767994178287,0.95910614,3087.8,3087.5,0.00180504]
[1767994178496,1.32244467,3087.7,3087.5,0.00180504]
[1767994179196,1.32244467,3087.7,3087.2,0.00083825]
[1767994179197,0.95910614,3087.6,3087.2,0.00083825]
[1767994179985,0.95910614,3087.6,3086.8,0.001]
[1767994180186,0.95994439,3087.6,3086.8,0.001]
[1767994180384,0.95910614,3087.4,3086.8,0.001]
[1767994181820,0.255,3087.3,3086.8,0.001]
[1767994182511,6.47836226,3087.2,3086.8,0.001]
[1767994182717,3.23918113,3087.2,3086.8,0.001]
[1767994182918,6.47836226,3087.2,3086.8,0.001]
[1767994183127,4.00842797,3087.2,3086.8,0.001]
[1767994183321,4.00842797,3087.2,3087.1,0.001]
[1767994183621,4.00842797,3087.2,3086.8,0.001]
[1767994183822,3.23918113,3087.2,3086.8,0.001]
[1767994184391,6.47836226,3087.2,3086.8,0.001]
[1767994184599,3.23918113,3087.2,3086.8,0.001]
[1767994190548,3.49407802,3087.3,3086.8,0.001]
[1767994191038,6.73320552,3087.3,3086.8,0.001]
[1767994191235,3.49409002,3087.3,3086.8,0.93378149]
[1767994191536,0.255,3087.2,3086.8,0.93378149]
[1767994194813,0.255,3087.2,3087.1,0.93378149]
[1767994199638,0.18388856,3087.2,3087.1,0.93378149]
[1767994203481,3.42306969,3087.2,3086.8,0.001]
[1767994204898,0.18388856,3087.2,3086.8,0.001]
[1767994205069,0.18388856,3087.2,3086.8,0.937995]
[1767994206899,0.18388856,3087.2,3087.1,0.001]
[1767994210369,3.23891796,3087.5,3087.1,0.937995]
[1767994210570,0.255,3087.4,3087.1,0.937995]
[1767994211708,3.49397735,3087.4,3086.9,0.936995]
[1767994213402,0.255,3087.4,3086.9,0.936995]
[1767994215307,0.00083825,3087.6,3087.0,0.936995]
[1767994215620,0.255,3087.5,3087.0,0.936995]
[1767994215909,0.255,3087.5,3087.1,0.936995]
[1767994216075,3.49387225,3087.5,3087.1,0.936995]
[1767994216274,6.65187177,3087.4,3086.5,0.00080592]
[1767994216614,0.98088524,3086.9,3085.9,0.001]
[1767994216782,0.98007932,3086.7,3085.9,0.001]
[1767994217997,0.98007932,3086.5,3085.9,0.001]
[1767994218193,1.72604941,3086.5,3085.9,0.001]
[1767994218398,0.98007932,3086.4,3085.9,0.001]
[1767994218598,0.255,3086.3,3085.9,0.001]
[1767994226618,0.98007932,3087.0,3086.2,0.936995]
[1767994226841,0.255,3086.8,3086.3,0.936995]
[1767994227146,0.255,3086.8,3086.2,3.2402307]
[1767994227147,0.002,3087.2,3086.7,0.936995]
[1767994227356,0.255,3087.1,3086.7,0.936995]
[1767994228002,0.002,3087.5,3086.6,0.72252858]
[1767994228228,0.98207932,3087.5,3086.6,0.72252858]
[1767994228437,0.255,3087.4,3086.6,0.72252858]
[1767994228614,0.255,3087.4,3086.7,0.72252858]
[1767994228819,0.255,3087.4,3086.9,0.72252858]
[1767994232766,0.255,3087.4,3086.9,3.96201979]
[1767994233852,0.255,3087.4,3086.9,0.72252858]
[1767994234664,0.255,3087.4,3086.8,0.63943381]
[1767994234962,0.255,3087.4,3086.8,1.36196239]
[1767994235636,1.20547896,3087.4,3086.8,0.63943381]
[1767994235982,0.95047896,3087.3,3086.5,0.000806]
[1767994236868,0.255,3087.4,3086.5,0.72333458]
[1767994237180,3.4939898,3087.4,3086.6,0.72252858]
[1767994237578,0.255,3087.4,3086.6,3.9623164]
[1767994237784,0.255,3087.4,3086.7,0.75492563]
[1767994240395,0.255,3087.4,3086.7,3.99461317]
[1767994240581,0.255,3087.4,3086.7,0.72252858]
[1767994240582,3.49398421,3087.4,3086.7,0.72252858]
[1767994240887,0.95047896,3087.3,3086.5,8.9124805]
[1767994242274,0.95047896,3087.3,3086.5,9.63500908]
[1767994242477,0.95047896,3087.3,3086.6,3.23980399]
[1767994242793,0.95047896,3087.3,3086.6,4.52729882]
[1767994243002,0.95047896,3087.3,3086.8,0.001]
[1767994243303,0.002,3087.1,3086.8,0.001]
[1767994248112,0.002,3087.5,3086.9,0.72252858]
[1767994248411,0.255,3087.4,3086.9,0.72252858]
[1767994248599,0.255,3087.4,3087.0,0.72252858]
[1767994249011,1.00402582,3087.3,3086.8,0.001]
[1767994250378,4.2431214,3087.3,3086.8,0.001]
[1767994250684,0.96191987,3087.2,3086.8,0.001]
[1767994251015,0.96191987,3087.1,3086.8,0.001]
[1767994252485,4.20124686,3087.1,3086.8,0.001]
[1767994253314,0.96191987,3087.1,3086.8,0.001]
[1767994254525,4.20125103,3087.1,3086.8,0.001]
[1767994254693,0.96191987,3087.0,3086.8,0.001]
[1767994255009,0.255,3086.9,3086.8,0.001]
[1767994258041,1.21691987,3086.9,3086.8,0.001]
[1767994262625,1.21691987,3086.9,3086.5,0.000806]
[1767994262626,0.96191987,3086.8,3086.5,0.000806]
[1767994263448,0.9958885,3086.6,3086.2,0.001]
[1767994263833,0.255806,3086.9,3086.2,0.72352858]
[1767994264145,0.255806,3086.9,3086.4,5.67180957]
[1767994264562,0.255806,3086.9,3086.4,6.39433815]
[1767994264967,0.255806,3086.9,3086.5,0.72252858]
[1767994266238,0.255806,3086.9,3086.3,0.72252858]
[1767994267344,4.49121678,3086.9,3086.2,0.001]
[1767994268382,1.2516945,3086.9,3086.2,0.001]
[1767994268552,4.49120647,3086.9,3086.7,0.001]
[1767994271053,0.255806,3086.9,3086.7,0.001]
[1767994273986,0.9958885,3086.8,3086.2,0.001]
[1767994275866,4.23552112,3086.8,3086.2,0.001]
[1767994276070,0.9958885,3086.7,3086.2,0.001]
[1767994278614,0.9958885,3086.7,3086.2,0.001]
[1767994278819,0.9958885,3086.8,3086.2,0.001]
[1767994280487,0.9958885,3086.8,3086.5,0.001]
[1767994280718,0.002,3086.6,3086.5,0.001]
[1767994282577,0.9978885,3086.6,3086.5,0.001]
[1767994282796,1.74559821,3086.6,3086.5,0.001]
[1767994283015,0.9968885,3086.5,3086.2,0.001]
[1767994285523,0.04210595,3087.1,3086.2,0.001]
[1767994285524,0.9958885,3087.4,3086.6,5.67180957]
[1767994285911,0.9958885,3087.3,3086.6,5.67180957]
[1767994286220,0.9958885,3087.3,3086.6,6.41263071]
[1767994286523,0.9958885,3087.3,3086.5,0.00080608]
[1767994286693,0.9958885,3087.1,3086.5,0.00080608]
[1767994287129,1.03799445,3087.1,3086.5,0.00080608]
[1767994288923,4.27729867,3087.1,3086.5,0.00080608]
[1767994289126,1.03799445,3087.1,3086.5,0.00080608]
[1767994289294,0.002,3087.5,3087.0,0.71972258]
[1767994289501,0.002,3087.5,3087.0,0.69912724]
[1767994289897,0.25580504,3087.9,3087.3,0.69912724]
[1767994290103,0.25580504,3087.9,3087.2,0.00083908]
[1767994290104,0.255,3088.0,3087.5,0.69993236]
[1767994290304,0.9958885,3088.5,3087.5,0.69993236]
[1767994290643,0.255,3088.4,3087.8,3.23855171]
[1767994291137,0.255,3088.4,3087.8,7.17623066]
[1767994291327,0.255,3088.4,3087.8,0.69912724]
[1767994293343,0.255,3088.4,3087.8,3.93762935]
[1767994293645,0.255,3088.4,3087.8,3.23850211]
[1767994294111,0.002,3088.1,3087.8,3.23850211]
[1767994294729,0.002,3088.1,3087.6,1.33647033]
[1767994294933,0.002,3088.1,3087.6,0.69912724]
[1767994295712,0.002,3088.1,3087.7,3.23864871]
[1767994296156,0.002,3088.1,3087.6,3.93785295]
[1767994296360,0.002,3088.1,3087.6,3.23872571]
[1767994297246,0.002,3088.1,3087.5,0.00080512]
[1767994297447,0.002,3088.1,3087.6,0.64787197]
[1767994297815,0.91409665,3088.1,3087.5,0.00080512]
[1767994299940,0.04210595,3088.7,3087.5,0.00080512]
[1767994299941,0.002,3090.6,3088.6,0.69912724]
[1767994300164,0.002,3090.6,3087.8,0.05]
[1767994300165,0.002,3090.6,3089.5,0.74005719]